fUSD/lending_fUSD_20240619
["ID","MTS","AMOUNT","RATE_DAILY","PERIOD"]
[329900463,1718808637230,-1106.12,0.00013698,2]
[329900464,1718808637240,-500.0,0.00013698,2]
[329900465,1718808637250,-829.15,0.00013698,2]
[329900466,1718808637260,-500.0,0.00013698,2]
[329900467,1718808637270,-500.0,0.00013698,2]
[329900468,1718808637280,-870.24,0.00013698,2]
[329900469,1718808637290,-500.0,0.00013698,2]
[329900470,1718808637300,-500.0,0.00013698,2]
[329900471,1718808637310,-156.90613,0.00013698,2]
[329900472,1718808637320,-500.0,0.00013698,2]
[329900473,1718808637330,-151.0,0.00013698,2]
[329900474,1718808637340,-500.0,0.00013698,2]
[329900475,1718808637350,-151.0,0.00013698,2]
[329900476,1718808637360,-500.0,0.00013698,2]
[329900477,1718808637370,-500.0,0.00013698,2]
[329900478,1718808637380,-151.0,0.00013698,2]
[329900479,1718808637390,-151.0,0.00013698,2]
[329900480,1718808637400,-570.73,0.00013698,2]
[329900481,1718808637410,-500.0,0.00013698,2]
[329900482,1718808637420,-823.07,0.00013698,2]
[329900483,1718808637430,-500.0,0.00013698,2]
[329900484,1718808637440,-500.0,0.00013698,2]
[329900485,1718808637450,-500.0,0.00013698,2]
[329900486,1718808637460,-500.0,0.00013698,2]
[329900487,1718808637470,-538.88,0.00013698,2]
[329900488,1718808637480,-500.0,0.00013698,2]
[329900489,1718808637490,-158.984134,0.00013698,2]
[329900490,1718808637501,-500.0,0.00013698,2]
[329900491,1718808637511,-1072.81,0.00013698,2]
[329900492,1718808637520,-1423.32,0.00013698,2]
[329900493,1718808637530,-500.0,0.00013698,2]
[329900494,1718808637540,-500.0,0.00013698,2]
[329900495,1718808637550,-1569.82,0.00013698,2]
[329900496,1718808637560,-500.0,0.00013698,2]
[329900497,1718808637570,-1099.47,0.00013698,2]
[329900498,1718808637580,-511.03,0.00013698,2]
[329900499,1718808637590,-500.0,0.00013698,2]
[329900500,1718808637600,-1168.02,0.00013698,2]
[329900501,1718808637610,-722.22,0.00013698,2]
[329900502,1718808637620,-742.46,0.00013698,2]
[329900503,1718808637630,-701.63,0.00013698,2]
[329900504,1718808637640,-636.24046881,0.00013698,2]
[329900505,1718808637649,-500.0,0.00013698,2]
[329900506,1718808637659,-561.2,0.00013698,2]
[329900507,1718808637669,-500.0,0.00013698,2]
[329900508,1718808637679,-953.49,0.00013698,2]
[329900509,1718808637689,-500.0,0.00013698,2]
[329900510,1718808637698,-756.06,0.00013698,2]
[329900511,1718808637710,-1015.16,0.00013698,2]
[329900512,1718808637722,-1252.48,0.00013698,2]
[329900513,1718808637732,-299.15754075,0.00013698,2]
[329900514,1718808637742,-1889.91,0.00013698,2]
[329900515,1718808637754,-650.02,0.00013698,2]
[329900516,1718808637764,-847.01,0.00013698,2]
[329900517,1718808637774,-1185.55,0.00013698,2]
[329900518,1718808637783,-151.0,0.00013698,2]
[329900519,1718808637795,-151.0,0.00013698,2]
[329900520,1718808637805,-156.78611,0.00013698,2]
[329900521,1718808637815,-728.56,0.00013698,2]
[329900523,1718808637825,-690.62,0.00013698,2]
[329900525,1718808637837,-698.26,0.00013698,2]
[329900527,1718808637847,-815.91,0.00013698,2]
[329900528,1718808637857,-1394.46,0.00013698,2]
[329900529,1718808637866,-543.57,0.00013698,2]
[329900530,1718808637876,-728.97,0.00013698,2]
[329900531,1718808637885,-731.21,0.00013698,2]
[329900532,1718808637895,-500.0,0.00013698,2]
[329900534,1718808637905,-811.08,0.00013698,2]
[329900536,1718808637914,-1012.61,0.00013698,2]
[329900538,1718808637924,-1517.84,0.00013698,2]
[329900540,1718808637934,-500.0,0.00013698,2]
[329900541,1718808637944,-500.0,0.00013698,2]
[329900542,1718808637955,-500.0,0.00013698,2]
[329900543,1718808637964,-550.31,0.00013698,2]
[329900544,1718808637974,-1452.76,0.00013698,2]
[329900545,1718808637984,-151.0,0.00013698,2]
[329900546,1718808637994,-151.0,0.00013698,2]
[329900547,1718808638004,-151.0,0.00013698,2]
[329900548,1718808638013,-151.0,0.00013698,2]
[329900549,1718808638023,-679.64,0.00013698,2]
[329900550,1718808638033,-1531.55,0.00013698,2]
[329900551,1718808638042,-1615.57,0.00013698,2]
[329900552,1718808638052,-500.0,0.00013698,2]
[329900553,1718808638062,-151.0,0.00013698,2]
[329900554,1718808638072,-151.0,0.00013698,2]
[329900555,1718808638082,-500.0,0.00013698,2]
[329900556,1718808638092,-151.0,0.00013698,2]
[329900557,1718808638102,-151.0,0.00013698,2]
[329900558,1718808638112,-701.74,0.00013698,2]
[329900559,1718808638121,-500.0,0.00013698,2]
[329900560,1718808638131,-500.0,0.00013698,2]
[329900561,1718808638141,-758.93,0.00013698,2]
[329900562,1718808638151,-1291.85,0.00013698,2]
[329900563,1718808638161,-603.38,0.00013698,2]
[329900564,1718808638170,-151.0,0.00013698,2]
[329900565,1718808638180,-186.33456,0.00013698,2]
[329900566,1718808638190,-500.0,0.00013698,2]
[329900567,1718808638201,-1008.89,0.00013698,2]
[329900568,1718808638211,-668.78,0.00013698,2]
[329900569,1718808638221,-672.59,0.00013698,2]
[329900570,1718808638232,-1279.94,0.00013698,2]
[329900571,1718808638241,-500.0,0.00013698,2]
[329900572,1718808638251,-735.75,0.00013698,2]
[329900573,1718808638260,-500.0,0.00013698,2]
[329900574,1718808638270,-1218.97,0.00013698,2]
[329900575,1718808638280,-500.0,0.00013698,2]
[329900576,1718808638291,-500.0,0.00013698,2]
[329900577,1718808638301,-1290.35,0.00013698,2]
[329900578,1718808638310,-500.0,0.00013698,2]
[329900579,1718808638320,-500.0,0.00013698,2]
[329900580,1718808638330,-151.0,0.00013698,2]
[329900581,1718808638340,-882.92,0.00013698,2]
[329900582,1718808638350,-151.0,0.00013698,2]
[329900583,1718808638359,-739.33,0.00013698,2]
[329900584,1718808638369,-500.0,0.00013698,2]
[329900585,1718808638380,-1408.21,0.00013698,2]
[329900586,1718808638390,-500.0,0.00013698,2]
[329900587,1718808638401,-151.0,0.00013698,2]
[329900588,1718808638411,-152.31089,0.00013698,2]
[329900589,1718808638421,-500.0,0.00013698,2]
[329900590,1718808638431,-500.0,0.00013698,2]
[329900591,1718808638442,-500.0,0.00013698,2]
[329900592,1718808638717,-618.52,0.00013698,2]
[329900593,1718808638729,-500.0,0.00013698,2]
[329900594,1718808638739,-500.0,0.00013698,2]
[329900595,1718808638750,-500.0,0.00013698,2]
[329900596,1718808638759,-1605.47,0.00013698,2]
[329900597,1718808638769,-997.92,0.00013698,2]
[329900598,1718808638779,-731.82,0.00013698,2]
[329900599,1718808638790,-500.0,0.00013698,2]
[329900600,1718808638800,-500.0,0.00013698,2]
[329900601,1718808638811,-599.64,0.00013698,2]
[329900602,1718808638820,-500.0,0.00013698,2]
[329900603,1718808638830,-1193.5,0.00013698,2]
[329900604,1718808638840,-548.14,0.00013698,2]
[329900605,1718808638850,-500.0,0.00013698,2]
[329900606,1718808638860,-1950.27,0.00013698,2]
[329900607,1718808638871,-1286.48,0.00013698,2]
[329900608,1718808638880,-151.0,0.00013698,2]
[329900609,1718808638890,-151.0,0.00013698,2]
[329900610,1718808638901,-151.0,0.00013698,2]
[329900611,1718808638911,-151.0,0.00013698,2]
[329900612,1718808638920,-500.0,0.00013698,2]
[329900613,1718808638930,-500.0,0.00013698,2]
[329900614,1718808638940,-523.30694462,0.00013698,2]
[329900615,1718808638950,-2639.84,0.00013698,2]
[329900616,1718808638960,-635.18,0.00013698,2]
[329900617,1718808638970,-500.0,0.00013698,2]
[329900618,1718808638980,-151.0,0.00013698,2]
[329900619,1718808638991,-151.0,0.00013698,2]
[329900620,1718808639001,-500.0,0.00013698,2]
[329900621,1718808639010,-151.0,0.00013698,2]
[329900622,1718808639021,-584.68,0.00013698,2]
[329900623,1718808639032,-151.0,0.00013698,2]
[329900624,1718808639042,-1840.23,0.00013698,2]
[329900625,1718808639052,-500.0,0.00013698,2]
[329900626,1718808639063,-938.65,0.00013698,2]
[329900627,1718808639073,-500.0,0.00013698,2]
[329900628,1718808639083,-505.87,0.00013698,2]
[329900629,1718808639094,-2890.72,0.00013698,2]
[329900630,1718808639104,-636.09,0.00013698,2]
[329900631,1718808639114,-960.16,0.00013698,2]
[329900632,1718808639125,-509.89,0.00013698,2]
[329900633,1718808639136,-886.04,0.00013698,2]
[329900634,1718808639147,-500.0,0.00013698,2]
[329900636,1718808639158,-1443.33,0.00013698,2]
[329900637,1718808639169,-500.0,0.00013698,2]
[329900638,1718808639179,-3789.29,0.00013698,2]
[329900639,1718808639190,-500.0,0.00013698,2]
[329900640,1718808639200,-500.0,0.00013698,2]
[329900641,1718808639213,-500.0,0.00013698,2]
[329900642,1718808639224,-500.0,0.00013698,2]
[329900643,1718808639235,-1199.76,0.00013698,2]
[329900645,1718808639245,-500.0,0.00013698,2]
[329900646,1718808639255,-500.0,0.00013698,2]
[329900648,1718808639265,-1195.63,0.00013698,2]
[329900651,1718808639275,-500.0,0.00013698,2]
[329900654,1718808639285,-533.51,0.00013698,2]
[329900657,1718808639296,-667.5,0.00013698,2]
[329900659,1718808639306,-500.0,0.00013698,2]
[329900661,1718808639316,-4166.27,0.00013698,2]
[329900663,1718808639326,-151.0,0.00013698,2]
[329900665,1718808639337,-544.95,0.00013698,2]
[329900667,1718808639347,-151.0,0.00013698,2]
[329900669,1718808639358,-151.0,0.00013698,2]
[329900671,1718808639368,-151.0,0.00013698,2]
[329900673,1718808639378,-161.65622788,0.00013698,2]
[329900675,1718808639390,-1500.02,0.00013698,2]
[329900677,1718808639401,-151.0,0.00013698,2]
[329900679,1718808639412,-2672.68,0.00013698,2]
[329900681,1718808639423,-500.0,0.00013698,2]
[329900682,1718808639433,-151.0,0.00013698,2]
[329900683,1718808639443,-516.65,0.00013698,2]
[329900684,1718808639455,-151.0,0.00013698,2]
[329900685,1718808639466,-151.0,0.00013698,2]
[329900686,1718808639477,-1462.31,0.00013698,2]
[329900687,1718808639488,-867.81,0.00013698,2]
[329900688,1718808639498,-666.15,0.00013698,2]
[329900689,1718808639509,-1201.43,0.00013698,2]
[329900690,1718808639519,-491.26572758,0.00013698,2]
[329900691,1718808639530,-1058.82,0.00013698,2]
[329900692,1718808639540,-500.0,0.00013698,2]
[329900693,1718808639551,-500.0,0.00013698,2]
[329900694,1718808639561,-532.57,0.00013698,2]
[329900695,1718808639571,-500.0,0.00013698,2]
[329900696,1718808639582,-500.0,0.00013698,2]
[329900697,1718808639592,-500.0,0.00013698,2]
[329900698,1718808639602,-2755.22,0.00013698,2]
[329900699,1718808639612,-1045.68,0.00013698,2]
[329900700,1718808639623,-827.56,0.00013698,2]
[329900701,1718808639633,-934.15,0.00013698,2]
[329900702,1718808639643,-1801.16,0.00013698,2]
[329900703,1718808639653,-1858.56,0.00013698,2]
[329900704,1718808639664,-500.0,0.00013698,2]
[329900705,1718808639674,-689.15,0.00013698,2]
[329900706,1718808639685,-500.0,0.00013698,2]
[329900707,1718808639695,-2758.53,0.00013698,2]
[329900708,1718808639705,-683.88,0.00013698,2]
[329900709,1718808639721,-500.0,0.00013698,2]
[329900710,1718808639734,-500.0,0.00013698,2]
[329900711,1718808639745,-500.0,0.00013698,2]
[329900712,1718808639756,-3029.91,0.00013698,2]
[329900713,1718808639768,-500.0,0.00013698,2]
[329900714,1718808639779,-1209.99,0.00013698,2]
[329900715,1718808639792,-1274.13,0.00013698,2]
[329900716,1718808639802,-151.0,0.00013698,2]
[329900717,1718808639812,-151.0,0.00013698,2]
[329900718,1718808639822,-151.0,0.00013698,2]
[329900719,1718808639833,-151.0,0.00013698,2]
[329900720,1718808639845,-500.0,0.00013698,2]
[329900721,1718808639856,-1538.71,0.00013698,2]
[329900722,1718808639866,-500.0,0.00013698,2]
[329900723,1718808639876,-1582.43,0.00013698,2]
[329900724,1718808639887,-151.0,0.00013698,2]
[329900725,1718808639898,-151.0,0.00013698,2]
[329900726,1718808639909,-151.0,0.00013698,2]
[329900727,1718808639919,-257.062512,0.00013698,2]
[329900728,1718808639929,-151.0,0.00013698,2]
[329900729,1718808639940,-151.0,0.00013698,2]
[329900730,1718808639950,-500.0,0.00013698,2]
[329900731,1718808639962,-193.94777809,0.00013698,2]
[329900732,1718808639971,-1367.59,0.00013698,2]
[329900733,1718808639981,-2405.86,0.00013698,2]
[329900734,1718808639991,-1019.96,0.00013698,2]
[329900735,1718808640001,-500.0,0.00013698,2]
[329900736,1718808640012,-567.62,0.00013698,2]
[329900737,1718808640022,-5658.4,0.00013698,2]
[329900738,1718808640032,-500.0,0.00013698,2]
[329900739,1718808640043,-2640.32,0.00013698,2]
[329900740,1718808640053,-500.0,0.00013698,2]
[329900741,1718808640063,-500.0,0.00013698,2]
[329900742,1718808640074,-1088.9,0.00013698,2]
[329900743,1718808640084,-500.0,0.00013698,2]
[329900744,1718808640095,-15586.61,0.00013698,2]
[329900745,1718808640106,-1087.97,0.00013698,2]
[329900746,1718808640117,-6088.19,0.00013698,2]
[329900747,1718808640127,-500.0,0.00013698,2]
[329900748,1718808640137,-871.96,0.00013698,2]
[329900749,1718808640147,-721.54,0.00013698,2]
[329900750,1718808640158,-620.29,0.00013698,2]
[329900751,1718808640168,-549.04,0.00013698,2]
[329900752,1718808640178,-500.0,0.00013698,2]
[329900753,1718808640188,-900.97,0.00013698,2]
[329900754,1718808640198,-624.54160015,0.00013698,2]
[329900755,1718808640211,-2513.32,0.00013698,2]
[329900757,1718808640221,-164.922376,0.00013698,2]
[329900760,1718808640231,-500.0,0.00013698,2]
[329900764,1718808640241,-1320.83,0.00013698,2]
[329900767,1718808640252,-500.0,0.00013698,2]
[329900769,1718808640262,-3224.16,0.00013698,2]
[329900771,1718808640273,-500.0,0.00013698,2]
[329900772,1718808640284,-836.19,0.00013698,2]
[329900773,1718808640296,-500.0,0.00013698,2]
[329900774,1718808640306,-500.0,0.00013698,2]
[329900775,1718808640317,-871.29,0.00013698,2]
[329900776,1718808640327,-1361.05,0.00013698,2]
[329900777,1718808640338,-533.44,0.00013698,2]
[329900778,1718808640348,-500.0,0.00013698,2]
[329900779,1718808640358,-500.0,0.00013698,2]
[329900780,1718808640369,-15734.45,0.00013698,2]
[329900781,1718808640380,-3000.0,0.00013698,2]
[329900782,1718808640390,-3598.44,0.00013698,2]
[329900783,1718808640400,-2233.11,0.00013698,2]
[329900784,1718808640411,-500.0,0.00013698,2]
[329900785,1718808640423,-558.0,0.00013698,2]
[329900786,1718808640433,-627.73,0.00013698,2]
[329900787,1718808640444,-1308.35,0.00013698,2]
[329900788,1718808640455,-313.46115937,0.00013698,2]
[329900789,1718808640466,-4759.0,0.00013698,2]
[329900790,1718808640476,-739.43,0.00013698,2]
[329900791,1718808640486,-879.61,0.00013698,2]
[329900792,1718808640496,-671.68,0.00013698,2]
[329900793,1718808640506,-1862.85,0.00013698,2]
[329900794,1718808640516,-7974.08,0.00013698,2]
[329900795,1718808640527,-7328.24,0.00013698,2]
[329900796,1718808640537,-1644.37,0.00013698,2]
[329900797,1718808640547,-876.24,0.00013698,2]
[329900798,1718808640557,-664.09,0.00013698,2]
[329900799,1718808640567,-756.55,0.00013698,2]
[329900800,1718808640577,-995.7,0.00013698,2]
[329900801,1718808640589,-500.0,0.00013698,2]
[329900802,1718808640599,-500.0,0.00013698,2]
[329900803,1718808640608,-1353.52,0.00013698,2]
[329900804,1718808640618,-151.0,0.00013698,2]
[329900805,1718808640628,-500.0,0.00013698,2]
[329900806,1718808640638,-577.02,0.00013698,2]
[329900807,1718808640648,-1614.61,0.00013698,2]
[329900808,1718808640658,-1845.67,0.00013698,2]
[329900809,1718808640668,-5209.45391424,0.00013698,2]
[329900862,1718808641317,-25784.89240085,0.00013698,2]
[329900865,1718808641330,-297.04785907,0.00013698,2]
[329900867,1718808641342,-12191.51498028,0.00013698,2]
[329900869,1718808641354,-10592.52084556,0.00013698,2]
[329900871,1718808641363,-522.5,0.00013698,2]
[329900873,1718808641372,-871.73,0.00013698,2]
[329900875,1718808641382,-151.0,0.00013698,2]
[329900877,1718808641392,-857.24915444,0.00013698,2]
[329901055,1718808643987,-304.92097551,0.00010153,2]
[329901056,1718808643997,-3499.44271694,0.00013698,2]
[329901057,1718808644009,-570.18901416,0.00013698,2]
[329901058,1718808644021,-780.33589964,0.00013698,2]
[329901060,1718808644032,-298.0119726,0.00013698,2]
[329901061,1718808644439,-517.3092,0.00013698,2]
[329901062,1718808645836,-506.0,0.00013591,2]
[329901063,1718808645847,-489.39014488,0.00013697,2]
[329901064,1718808645857,-4056.89204222,0.00013698,2]
[329901065,1718808645866,-151.0,0.00013698,2]
[329901066,1718808645876,-151.0,0.00013698,2]
[329901067,1718808645885,-151.0,0.00013698,2]
[329901068,1718808645894,-151.0,0.00013698,2]
[329901069,1718808645903,-151.0,0.00013698,2]
[329901070,1718808645913,-1776.25,0.00013698,2]
[329901071,1718808645922,-151.0,0.00013698,2]
[329901072,1718808645932,-151.0,0.00013698,2]
[329901073,1718808645941,-1496.27,0.00013698,2]
[329901075,1718808645951,-709.45,0.00013698,2]
[329901077,1718808645961,-500.0,0.00013698,2]
[329901079,1718808645971,-2068.94,0.00013698,2]
[329901082,1718808645981,-659.38,0.00013698,2]
[329901084,1718808645991,-151.0,0.00013698,2]
[329901087,1718808646001,-151.0,0.00013698,2]
[329901090,1718808646010,-892.86,0.00013698,2]
[329901091,1718808646020,-151.0,0.00013698,2]
[329901093,1718808646030,-151.0,0.00013698,2]
[329901094,1718808646040,-151.0,0.00013698,2]
[329901095,1718808646049,-1241.49,0.00013698,2]
[329901097,1718808646059,-500.0,0.00013698,2]
[329901098,1718808646069,-500.0,0.00013698,2]
[329901099,1718808646079,-1364.17,0.00013698,2]
[329901100,1718808646089,-2839.54,0.00013698,2]
[329901101,1718808646099,-500.0,0.00013698,2]
[329901102,1718808646110,-926.92,0.00013698,2]
[329901103,1718808646120,-151.0,0.00013698,2]
[329901104,1718808646130,-151.0,0.00013698,2]
[329901105,1718808646140,-151.0,0.00013698,2]
[329901106,1718808646149,-2691.66,0.00013698,2]
[329901107,1718808646161,-151.0,0.00013698,2]
[329901108,1718808646171,-151.0,0.00013698,2]
[329901109,1718808646180,-151.0,0.00013698,2]
[329901110,1718808646191,-3978.38,0.00013698,2]
[329901111,1718808646201,-467.20963409,0.00013698,2]
[329901112,1718808646213,-500.0,0.00013698,2]
[329901113,1718808646222,-574.88,0.00013698,2]
[329901114,1718808646232,-992.06,0.00013698,2]
[329901115,1718808646241,-151.0,0.00013698,2]
[329901116,1718808646251,-151.0,0.00013698,2]
[329901117,1718808646262,-1333.27,0.00013698,2]
[329901118,1718808646271,-230.369848,0.00013698,2]
[329901119,1718808646281,-833.98,0.00013698,2]
[329901120,1718808646291,-18837.21,0.00013698,2]
[329901121,1718808646301,-500.0,0.00013698,2]
[329901122,1718808646311,-1243.37,0.00013698,2]
[329901123,1718808646323,-5425.2,0.00013698,2]
[329901124,1718808646334,-500.0,0.00013698,2]
[329901125,1718808646345,-500.0,0.00013698,2]
[329901126,1718808646356,-500.0,0.00013698,2]
[329901127,1718808646366,-18054.73,0.00013698,2]
[329901128,1718808646378,-1006.96,0.00013698,2]
[329901129,1718808646389,-685.86,0.00013698,2]
[329901130,1718808646398,-500.0,0.00013698,2]
[329901131,1718808646409,-500.0,0.00013698,2]
[329901132,1718808646419,-500.0,0.00013698,2]
[329901133,1718808646430,-1438.83,0.00013698,2]
[329901134,1718808646441,-2171.48,0.00013698,2]
[329901135,1718808646452,-1023.14,0.00013698,2]
[329901136,1718808646463,-13504.0,0.00013698,2]
[329901137,1718808646472,-724.97,0.00013698,2]
[329901138,1718808646483,-1077.53,0.00013698,2]
[329901139,1718808646494,-13299.21,0.00013698,2]
[329901140,1718808646507,-584.68,0.00013698,2]
[329901141,1718808646516,-784.04,0.00013698,2]
[329901142,1718808646526,-2637.75,0.00013698,2]
[329901143,1718808646536,-14569.75,0.00013698,2]
[329901144,1718808646547,-523.55,0.00013698,2]
[329901145,1718808646558,-2296.72,0.00013698,2]
[329901146,1718808646569,-3252.81,0.00013698,2]
[329901147,1718808646579,-827.21,0.00013698,2]
[329901148,1718808646589,-500.0,0.00013698,2]
[329901149,1718808646599,-500.0,0.00013698,2]
[329901150,1718808646610,-812.49,0.00013698,2]
[329901151,1718808646620,-500.0,0.00013698,2]
[329901152,1718808646629,-1082.24,0.00013698,2]
[329901153,1718808646639,-1150.08,0.00013698,2]
[329901154,1718808646648,-952.16,0.00013698,2]
[329901155,1718808646657,-1389.05,0.00013698,2]
[329901156,1718808646666,-2582.48,0.00013698,2]
[329901157,1718808646676,-2057.72,0.00013698,2]
[329901158,1718808646685,-1088.47,0.00013698,2]
[329901159,1718808646695,-2753.95,0.00013698,2]
[329901160,1718808646705,-659.68,0.00013698,2]
[329901161,1718808646719,-1610.59,0.00013698,2]
[329901163,1718808646728,-500.0,0.00013698,2]
[329901164,1718808646738,-1658.46,0.00013698,2]
[329901165,1718808646747,-500.0,0.00013698,2]
[329901166,1718808646759,-2431.24,0.00013698,2]
[329901167,1718808646768,-1376.16,0.00013698,2]
[329901168,1718808646778,-500.0,0.00013698,2]
[329901169,1718808646788,-500.0,0.00013698,2]
[329901170,1718808646798,-1044.67,0.00013698,2]
[329901171,1718808646808,-970.84,0.00013698,2]
[329901172,1718808646818,-1777.07,0.00013698,2]
[329901173,1718808646828,-22197.52,0.00013698,2]
[329901175,1718808646838,-270.34,0.00013698,2]
[329901177,1718808646849,-500.0,0.00013698,2]
[329901179,1718808646859,-4228.9,0.00013698,2]
[329901181,1718808646868,-500.0,0.00013698,2]
[329901183,1718808646877,-500.0,0.00013698,2]
[329901185,1718808646887,-929.2,0.00013698,2]
[329901187,1718808646896,-500.0,0.00013698,2]
[329901189,1718808646905,-1250.36,0.00013698,2]
[329901191,1718808646915,-2129.3,0.00013698,2]
[329901193,1718808646925,-2633.57,0.00013698,2]
[329901195,1718808646934,-1099.08,0.00013698,2]
[329901197,1718808646944,-151.0,0.00013698,2]
[329901199,1718808646953,-1354.34708308,0.00013698,2]
[329902491,1718808713044,-587.34057785,0.00010274,2]
[329902496,1718809053293,783.47,0.00010467,2]
[329902513,1718809729276,744.29,0.00010236,2]
[329902514,1718809832059,-209.83387148,0.00012096,2]
[329902516,1718809832070,-122.12903742,0.00012097,2]
[329902518,1718809832083,-32.87096258,0.00012097,2]
[329902521,1718809832094,-507.56146964,0.00012098,2]
[329902525,1718809832103,-285.86624444,0.00012099,2]
[329902529,1718809832114,-783.30112299,0.00012099,2]
[329902531,1718809832124,-50.49681017,0.00012101,2]
[329902534,1718809832138,-318.86689986,0.00012101,2]
[329902536,1718809832148,-641.43342479,0.00012101,2]
[329902551,1718809832379,-616.432805,0.00012101,2]
[329902552,1718809832389,-1571.50718804,0.00012109,2]
[329902553,1718809832401,-266.34568794,0.00012109,2]
[329902554,1718809832412,-17754.75403211,0.00012109,2]
[329902555,1718809832422,-1797.83256212,0.00012115,2]
[329902556,1718809832705,-1177.89403127,0.00012118,2]
[329902557,1718809832716,-676.85,0.00012122,2]
[329902559,1718809832725,-625.0,0.00012135,2]
[329902561,1718809832735,-625.0,0.00012135,2]
[329902562,1718809832744,-150.0,0.0001216,2]
[329902563,1718809832753,-1000.0,0.00012173,2]
[329902564,1718809832763,-23900.0,0.00012183,2]
[329902565,1718809832772,-224.99,0.00012183,2]
[329902566,1718809832782,-686.95,0.00012193,2]
[329902567,1718809832792,-464.36,0.00012193,2]
[329902568,1718809832802,-180.67,0.00012193,2]
[329902569,1718809832811,-8047.28,0.00012193,2]
[329902570,1718809832821,-1875.01,0.00012211,2]
[329902571,1718809832830,-499.99,0.00012211,2]
[329902572,1718809832840,-4995.53,0.00012228,2]
[329902573,1718809832850,-150.99,0.00012228,2]
[329902574,1718809832859,-150.99,0.00012228,2]
[329902575,1718809832870,-250.0,0.00012232,2]
[329902576,1718809832881,-4042.41,0.00012232,2]
[329902577,1718809832892,-250.0,0.00012233,2]
[329902578,1718809832903,-3317.96,0.00012254,2]
[329902579,1718809832915,-169.75,0.00012298,2]
[329902580,1718809832924,-3434.88,0.00012298,2]
[329902581,1718809832933,-909.67,0.00012298,2]
[329902582,1718809832943,-189.03,0.00012357,2]
[329902583,1718809832954,-744.29,0.000125,2]
[329902584,1718809832964,-4776.97157445,0.00013147,2]
[329902585,1718809832974,-626.52827106,0.00013148,2]
[329902586,1718809832983,-300.0,0.00013368,2]
[329902587,1718809832993,-150.0,0.00013368,2]
[329902588,1718809833002,-150.0,0.00013368,2]
[329902589,1718809833012,-150.0,0.00013368,2]
[329902590,1718809833022,-150.0,0.00013368,2]
[329902591,1718809833032,-150.0,0.00013368,2]
[329902592,1718809833042,-27230.81821316,0.00013423,2]
[329902593,1718809833052,-1007.62917227,0.00013424,2]
[329902594,1718809833063,-290.0,0.00013436,2]
[329902595,1718809833073,-5784.0,0.00013436,2]
[329902596,1718809833082,-5164.0,0.00013436,2]
[329902597,1718809833092,-1196.0,0.00013436,2]
[329902598,1718809833102,-20759.612,0.00013436,2]
[329902599,1718809833111,-1573.0,0.00013436,2]
[329902600,1718809833121,-240.38467831,0.00013478,2]
[329902601,1718809833134,-4590.142631,0.000135,2]
[329902602,1718809833144,-193.308667,0.0001351,2]
[329902603,1718809833154,-156.047804,0.0001351,2]
[329902604,1718809833164,-172.4,0.00013552,2]
[329902605,1718809833175,-500.0,0.00013587,2]